[Event "61st Mongolian-ch Open 2023"]
[Site "Khovd"]
[Date "2023.05.22"]
[Round "2.4"]
[White "Amartuvshin, Ganzorig"]
[Black "Gan-Erdene, Sugar"]
[Result "1/2-1/2"]
[ECO "D37"]
[WhiteElo "2407"]
[BlackElo "2420"]
[Annotator "TA"]
[PlyCount "177"]
[EventDate "2023.05.22"]
[EventType "tourn"]
[EventCountry "MGL"]
[SourceTitle "playchess.com"]
[Source "ChessBase"]
[SourceQuality "1"]
[TimeControl "40/5400+30:1800+30"]

{[%evp 9,177,26,23,25,35,37,35,33,35,28,35,-10,26,29,34,30,42,20,30,23,40,30,44,16,33,33,34,33,51,43,45,44,46,51,68,83,91,97,99,58,77,57,46,44,45,47,47,0,0,0,0,0,14,0,14,9,15,4,12,0,0,0,0,5,12,5,5,1,1,0,0,0,0,0,0,0,0,0,0,0,0,0,0,0,0,0,0,0,0,0,0,0,0,0,0,0,0,0,0,0,0,0,0,0,0,0,0,0,0,0,0,0,0,0,0,0,0,0,0,0,0,0,0,0,0,0,0,0,0,0,0,0,0,0,0,0,0,0,0,0,0,0,0,0,0,0,0,0,0,0,0,0,0,0,0,0,0,0,0,0,0,0,0,0,0,0,0,0,0,0]} 1. d4 {[%emt 0:00:02]} Nf6 {[%emt 0:00:07]} 2. c4 {[%emt 0:00:03]} e6 {[%emt 0:00:06]} 3. Nf3 {[%emt 0:00:05]} d5 {[%emt 0:00:06]} 4. Nc3 {[%emt 0:00:04]} a6 {[%emt 0:00:06]} 5. cxd5 {[%emt 0:00:25]} exd5 {[%emt 0:00:06]} 6. Bg5 {[%emt 0:00:07] D37: Queen's Gambit Declined: 5 Bf4.} Be6 {[%emt 0:00:04]} 7. e3 {[%emt 0:00:07]} Nbd7 {[%emt 0:00:12]} 8. Bd3 {[%emt 0:00:13] White is slightly better.} Bd6 {[%emt 0:00:19]} 9. O-O {[%emt 0:00:51]} O-O {[%emt 0:00:17]} 10. Bf4 {[%emt 0:01:06]} Qe7 {[%emt 0:04:19]} 11. h3 {[%emt 0:00:36]} c6 {[%emt 0:05:19]} 12. Re1 {[%emt 0:00:41]} h6 {[%emt 0:01:07]} 13. Qc2 {[%emt 0:01:53]} Rfe8 {[%emt 0:01:16]} 14. a3 {[%emt 0:01:45]} a5 {[%emt 0:09:13]} 15. Ne5 {[%emt 0:06:19]} Rac8 {[%emt 0:04:04] [#]} 16. Qd2 $146 {[%emt 0:02:49]} ({Predecessor:} 16. Bh2 b5 17. f4 Nb6 18. Rac1 Bd7 19. Bg3 b4 20. axb4 axb4 21. Na4 Nxa4 22. Qxa4 {1-0 Baryshpolets,A (2609)-Graif,W (2123) Continental op 48th 2018 (4)}) 16... Bc7 {[%emt 0:09:30]} 17. Nxd7 {[%emt 0:06:27]} Qxd7 {[%emt 0:03:39]} 18. Na4 {[%emt 0:02:42][%cal Bc3a4,Ba4c5,Bc5b7,Bb7a5][%mdl 32]} Qe7 {[%emt 0:22:35]} 19. Bxc7 {[%emt 0:00:50]} Qxc7 {[%emt 0:00:04]} 20. b4 {[%emt 0:00:30]} axb4 {[%emt 0:02:15]} 21. axb4 {[%emt 0:00:41]} b5 {[%emt 0:11:42]} 22. Nc5 {[%emt 0:00:41]} Ra8 {[%emt 0:00:26]} 23. Qc3 {[%emt 0:00:21] White is more active.} Qd6 {[%emt 0:12:22]} 24. Nb7 {[%emt 0:01:43]} Qd7 {[%emt 0:00:45]} 25. Rxa8 {[%emt 0:00:37]} Rxa8 {[%emt 0:00:06]} 26. Na5 {[%emt 0:00:15]} Rc8 $1 {[%emt 0:03:30]} 27. Rc1 {[%emt 0:15:28][%cal Ra5c6]} Ne4 $1 {[%emt 0:00:13]} 28. Bxe4 {[%emt 0:01:10]} (28. Qc2 $14 {feels stronger.}) 28... dxe4 $11 {[%emt 0:00:04] The position is equal.} 29. Nb3 {[%emt 0:00:53]} ({Don't play} 29. Nxc6 Kh7 30. Qc5 Bd5 31. Qxb5 Bxc6 $17) 29... Bd5 {[%emt 0:01:31]} 30. Nc5 {[%emt 0:00:17]} Qd6 {[%emt 0:01:31]} 31. Ra1 {[%emt 0:01:21]} Re8 {[%emt 0:02:01]} 32. Ra7 {[%emt 0:00:25]} g5 {[%emt 0:01:55]} 33. Qa1 {[%emt 0:01:42]} Kg7 {[%emt 0:01:56]} 34. Qd1 {[%emt 0:01:14]} Re7 {[%emt 0:01:00]} 35. Rxe7 {[%emt 0:02:39]} Qxe7 {[%emt 0:00:03][%mdl 4096] Endgame KQB-KQN} 36. Qg4 {[%emt 0:00:07]} Kg6 {[%emt 0:01:29]} 37. Qc8 {[%emt 0:00:20]} Kg7 {[%emt 0:01:21] Prevents Qg8+.} 38. Qb8 {[%emt 0:02:18]} h5 {[%emt 0:00:44]} 39. Kf1 {[%emt 0:01:22]} Bc4+ {[%emt 0:00:29]} 40. Ke1 {[%emt 0:00:00]} Bd5 {[%emt 0:00:00]} 41. Kd2 {[%emt 0:01:49]} Qf6 {[%emt 0:01:40]} 42. Ke2 {[%emt 0:01:22]} Qe7 {[%emt 0:04:07] Inhibits Qc7.} 43. f4 {[%emt 0:02:47]} exf3+ {[%emt 0:07:36]} 44. gxf3 {[%emt 0:00:05]} Qf6 {[%emt 0:03:01]} 45. e4 {[%emt 0:01:08]} Bc4+ {[%emt 0:04:00]} 46. Ke3 {[%emt 0:00:10]} Bf1 {[%emt 0:00:26]} 47. Qh2 {[%emt 0:01:30]} Kh6 {[%emt 0:01:27]} 48. Nb7 {[%emt 0:50:05]} Qe6 {[%emt 0:01:55][%cal Oe6c4]} 49. h4 {[%emt 0:02:10]} Qb3+ {[%emt 0:08:40]} 50. Kf2 {[%emt 0:00:06] [#] Threatens to win with hxg5+.} Qb2+ {[%emt 0:00:42]} 51. Kg1 {[%emt 0:00:07]} Qc1 {[%emt 0:01:40] ( -> ...Bc4+)} 52. hxg5+ {[%emt 0:00:05]} Kxg5 {[%emt 0:00:28] Strongly threatening ...Be2+.} 53. Qe5+ {[%emt 0:01:22]} Kg6 {[%emt 0:00:27]} 54. Qf5+ {[%emt 0:00:29]} Kg7 {[%emt 0:00:19] ...Bh3+ is the strong threat.} 55. Qxh5 {[%emt 0:02:06]} Bc4+ {[%emt 0:00:09]} 56. Kf2 {[%emt 0:00:23]} Qd2+ {[%emt 0:00:59]} 57. Kg3 {[%emt 0:00:08]} Qxd4 {[%emt 0:00:43]} 58. Qg5+ {[%emt 0:00:22]} Kh7 {[%emt 0:00:18]} 59. Qc5 {[%emt 0:04:50]} Qg7+ {[%emt 0:01:03]} 60. Kf4 {[%emt 0:00:19]} Qh6+ {[%emt 0:00:18]} 61. Qg5 {[%emt 0:00:23]} Qh2+ {[%emt 0:00:19]} 62. Ke3 {[%emt 0:02:59]} Qe2+ {[%emt 0:00:31]} 63. Kd4 {[%emt 0:01:06]} Qxf3 {[%emt 0:00:37]} 64. Qh4+ {[%emt 0:01:19]} Kg6 {[%emt 0:00:29]} 65. Kc5 {[%emt 0:02:43]} f5 {[%emt 0:00:45]} 66. exf5+ {[%emt 0:00:18]} Qxf5+ {[%emt 0:00:15]} 67. Kb6 {[%emt 0:00:06]} Bd5 {[%emt 0:00:44]} 68. Qg3+ {[%emt 0:00:52]} Kf6 {[%emt 0:00:32]} 69. Qd6+ {[%emt 0:00:17]} Qe6 {[%emt 0:01:56]} 70. Qf8+ {[%emt 0:00:07]} Kg6 {[%emt 0:00:06]} 71. Nc5 {[%emt 0:00:24]} Qg4 {[%emt 0:00:25]} 72. Qd6+ {[%emt 0:00:08]} Kg5 {[%emt 0:00:42]} 73. Qe5+ {[%emt 0:00:10]} Kg6 {[%emt 0:00:05]} 74. Nd3 {[%emt 0:00:17][%cal Oe5d5] Hoping for Qxd5!} Qe4 {[%emt 0:01:09]} 75. Nf4+ {[%emt 0:00:20]} Kf7 {[%emt 0:00:16]} 76. Qc7+ {[%emt 0:02:14]} Ke8 {[%emt 0:00:45]} 77. Nxd5 {[%emt 0:00:36]} cxd5 {[%emt 0:00:55] KQ-KQ} 78. Qc6+ {[%emt 0:00:08]} Ke7 {[%emt 0:00:10]} 79. Kxb5 {[%emt 0:00:07]} Qd3+ {[%emt 0:00:17]} 80. Kb6 {[%emt 0:00:23]} Qd4+ {[%emt 0:00:44]} 81. Kb5 {[%emt 0:00:53]} Qd3+ {[%emt 0:00:05]} 82. Kb6 {[%emt 0:00:21]} Qd4+ {[%emt 0:00:05]} 83. Qc5+ {[%emt 0:00:03]} Qxc5+ {[%emt 0:00:04]} 84. Kxc5 {[%emt 0:00:06]} (84. bxc5 $5 d4 $8 85. c6 $11) 84... d4 {[%emt 0:00:13][%mdl 64] [#] aiming for ...d3. Deflection} 85. Kxd4 {[%emt 0:00:08] KP-K} Kd6 {[%emt 0:00:08]} 86. b5 {[%emt 0:00:06]} Kc7 {[%emt 0:00:03]} 87. Kc5 {[%emt 0:00:05]} Kb7 {[%emt 0:00:04]} 88. b6 {[%emt 0:00:05]} Kb8 {[%emt 0:00:06]} 89. Kd4 {[%emt 0:15:44] Weighted Error Value: White=0.06 (flawless) /Black=0.03 (flawless)} 1/2-1/2

[Event "61st Mongolian-ch Open 2023"]
[Site "Khovd"]
[Date "2023.05.22"]
[Round "2.5"]
[White "Munguntuul, Batkhuyag"]
[Black "Enkhnar, Enkhbaatar"]
[Result "1-0"]
[ECO "B41"]
[WhiteElo "2408"]
[BlackElo "2360"]
[Annotator "TA"]
[PlyCount "119"]
[EventDate "2023.05.22"]
[EventType "tourn"]
[EventCountry "MGL"]
[SourceTitle "playchess.com"]
[Source "ChessBase"]
[SourceQuality "1"]
[TimeControl "40/5400+30:1800+30"]

{[%evp 12,119,6,2,17,14,12,14,13,0,0,6,8,-9,12,6,4,8,7,0,32,10,8,10,114,125,150,84,227,232,228,227,224,225,225,218,218,226,226,218,483,489,464,278,268,277,274,262,252,280,312,302,345,337,371,380,373,372,375,375,405,400,405,388,381,379,389,382,600,600,574,572,651,641,633,569,566,559,560,560,659,558,558,564,640,647,620,590,604,478,439,390,489,401,391,395,572,572,571,571,565,565,565,565,546,552,544,540,536,523]} 1. e4 {[%emt 0:00:03]} c5 {[%emt 0:00:37]} 2. Nf3 {[%emt 0:00:03]} a6 {[%emt 0:00:47]} 3. c4 {[%emt 0:04:40]} e6 {[%emt 0:00:32]} 4. d4 {[%emt 0:00:24]} cxd4 {[%emt 0:00:05]} 5. Nxd4 {[%emt 0:00:05]} Nf6 {[%emt 0:00:02]} 6. Bd3 {[%emt 0:00:35]} Nc6 {[%emt 0:00:08]} 7. Nf3 {[%emt 0:20:52]} Bb4+ {[%emt 0:01:42] B41: Sicilian: Kan Variation: 5 c4.} 8. Nc3 {[%emt 0:02:03]} d5 {[%emt 0:02:11]} 9. exd5 {[%emt 0:03:11]} exd5 {[%emt 0:00:20] The position is equal.} 10. O-O {[%emt 0:00:08]} dxc4 {[%emt 0:05:55]} 11. Bxc4 {[%emt 0:00:58] [#]} O-O $146 {[%emt 0:05:36]} ({Predecessor:} 11... Qxd1 12. Nxd1 O-O 13. a3 Bd6 14. h3 Ne5 15. Nxe5 Bxe5 16. Bd2 b5 17. Bb3 Bf5 {0-1 Mesfin,L-Lungu,N (2270) Africa-chT 8th rapid 2003 (10)}) 12. h3 {[%emt 0:01:23]} Na5 {[%emt 0:07:54]} 13. Bd3 {[%emt 0:02:04]} Be6 {[%emt 0:03:28]} 14. Bg5 {[%emt 0:09:41]} h6 {[%emt 0:01:14] Hoping for ...Bxc3.} 15. Bh4 {[%emt 0:00:25]} Rc8 {[%emt 0:03:18]} 16. Rc1 {[%emt 0:08:55]} Nc4 {[%emt 0:02:21]} 17. Qe2 {[%emt 0:01:46] Threatens to win with Ne4.} Be7 {[%emt 0:16:11]} (17... Re8 $11) 18. Rfd1 $1 $16 {[%emt 0:06:11] Strongly threatening Bxf6.} Qb6 {[%emt 0:03:13] [#]} 19. Ne4 {[%emt 0:02:55]} (19. Na4 $142 $1 {[%cal Ra4b6]} Qb4 20. Nd4) 19... Nxe4 {[%emt 0:04:08] This costs Black the game.} (19... Nxb2 $2 20. Rb1 Nxe4 21. Rxb2 (21. Qxb2 Qxb2 22. Rxb2 Nc3 $17) 21... Bxh4 22. Qxe4 (22. Rxb6 Bxf2+ 23. Kf1 Ng3+ 24. Kxf2 Nxe2 $18) 22... Bxf2+ 23. Rxf2 $18) (19... Rfd8 $16) 20. Qxe4 $18 {[%emt 0:04:49][%csl Gd3][%cal Re4h7]} (20. Bxc4 Bxh4 21. Nxh4 Rxc4 22. Rxc4 Nxf2 23. Qxf2 Qxf2+ 24. Kxf2 Bxc4 $17) (20. Bxe7 Qxf2+ 21. Qxf2 Nxf2 22. Kxf2 Nxb2 $11) 20... f5 {[%emt 0:00:15] [#]} 21. Qe2 {[%emt 0:00:15]} (21. Qd4 $2 Bc5 22. Qf4 Nxb2 $19) 21... Bxh4 {[%emt 0:01:31]} (21... Nxb2 22. Rb1 (22. Bxe7 Nxd1 23. Qxd1 Rxc1 $16) 22... Ba3 23. Be7 $18 (23. Rd2 Bd5 $11)) 22. Nxh4 {[%emt 0:00:28][%cal Rd3c4]} Rfe8 {[%emt 0:01:31]} (22... Nxb2 $2 23. Rb1 $18) 23. Rxc4 {[%emt 0:00:53]} (23. Bxc4 Bxc4 24. Qf3 Qf6 25. Nxf5 Be6 26. Rxc8 Rxc8 $11) 23... Bxc4 {[%emt 0:01:04]} 24. Bxc4+ {[%emt 0:00:03][%cal Bd3c4,Bc4d5,Bd5b7][%mdl 32]} Kh7 {[%emt 0:02:15]} 25. Qd3 {[%emt 0:04:19]} Re4 $2 {[%emt 0:03:41]} (25... Rxc4 {was necessary.} 26. Qxc4 Re4) 26. Bd5 {[%emt 0:00:41]} (26. Nxf5 Rcxc4 27. g4 Qb5 $16) (26. Bf7 Rf4 27. Bg6+ (27. Nxf5 Qxf2+ 28. Kh2 Rxf5 $11) 27... Kg8 28. Qd5+ (28. Qd7 Rf8 $16) 28... Kh8 $18) 26... Rf4 {[%emt 0:02:35]} 27. Nxf5 {[%emt 0:03:59]} (27. Qg3 $142 g5 28. Nxf5) 27... Qxf2+ {[%emt 0:00:05]} 28. Kh1 {[%emt 0:00:37][%cal Bg1h1,Bh1h2,Bh2g3][%mdl 32] Black must now prevent Ne7+.} Qc2 {[%emt 0:04:23]} (28... Rxf5 $2 29. Be4 (29. Bxb7 Re8 $16) 29... Rcf8 30. g4 $18 (30. Bxf5+ Qxf5 31. Qxf5+ Rxf5 $11)) 29. Bxb7 {[%emt 0:04:06]} Qxd3 {[%emt 0:02:00]} (29... Rxf5 $2 30. Qxc2 (30. Bxc8 Qxc8 31. b4 Qe6 $16) 30... Rxc2 31. Be4 $18 (31. Bxa6 g6 $16)) 30. Rxd3 {[%emt 0:01:05]} Rc1+ {[%emt 0:00:09]} 31. Kh2 {[%emt 0:00:10]} Rc7 {[%emt 0:03:29]} 32. Nd6 {[%emt 0:01:49]} ({Inferior is} 32. Bxa6 Rxf5 33. Rd8 g6 $11) 32... a5 {[%emt 0:00:25]} 33. Be4+ {[%emt 0:01:19]} Kg8 {[%emt 0:00:39]} 34. Kg3 {[%emt 0:06:02]} g5 {[%emt 0:00:19]} 35. b3 {[%emt 0:00:37]} Re7 {[%emt 0:01:30]} 36. Bd5+ {[%emt 0:00:51]} Kg7 {[%emt 0:00:13]} 37. a3 {[%emt 0:01:10][%cal Ba2a3,Ba3a4][%mdl 32]} h5 {[%emt 0:00:28]} 38. Bf3 {[%emt 0:01:13]} h4+ {[%emt 0:00:56]} 39. Kh2 {[%emt 0:00:05]} Kf6 {[%emt 0:00:29]} (39... Kf8 $142 40. Rc3 Re5) 40. Nc4 {[%emt 0:00:00]} Ra7 {[%emt 0:00:00]} 41. Rd6+ {[%emt 0:03:46]} Kg7 {[%emt 0:01:30]} 42. a4 {[%emt 0:00:48]} Rf5 {[%emt 0:00:17]} 43. Be4 {[%emt 0:01:29]} Rc5 {[%emt 0:00:14]} 44. Re6 {[%emt 0:02:38]} Kf7 {[%emt 0:01:04]} 45. Rh6 {[%emt 0:00:42] Rh7+ is the strong threat.} Kg8 {[%emt 0:00:37] Prevents Rh7.} 46. Bf3 {[%emt 0:02:05]} Kg7 {[%emt 0:00:16]} 47. Rb6 {[%emt 0:00:11]} Rf7 {[%emt 0:00:30]} 48. Ra6 {[%emt 0:01:37]} Rff5 {[%emt 0:00:05]} 49. Bg4 {[%emt 0:01:24]} Rfd5 {[%emt 0:00:15]} 50. Be6 {[%emt 0:00:07]} Rd4 {[%emt 0:00:22]} 51. Nxa5 {[%emt 0:03:48] Nc4 would be deadly.} Rc2 {[%emt 0:00:28]} 52. Bg4 {[%emt 0:00:32]} Rdd2 {[%emt 0:00:46]} 53. Bf3 {[%emt 0:00:03]} Rc3 {[%emt 0:00:17]} (53... Rf2 $142) 54. Nc4 {[%emt 0:02:35] White is clearly winning.} Ra2 {[%emt 0:00:30]} 55. Ne5 {[%emt 0:00:14]} Ra1 {[%emt 0:01:11]} 56. Rg6+ {[%emt 0:00:21]} Kf8 {[%emt 0:00:04]} 57. Rxg5 {[%emt 0:00:14]} Rxb3 {[%emt 0:00:29]} 58. Ng6+ {[%emt 0:01:08]} Kf7 {[%emt 0:00:18]} 59. Rg4 {[%emt 0:02:07] Repels Rb4. And now Bd5+ would win.} Rba3 {[%emt 0:00:24]} 60. Bc6 {[%emt 0:00:41] Weighted Error Value: White=0.17 (very precise) /Black=0.33} 1-0

[Event "61st Mongolian-ch Open 2023"]
[Site "Khovd"]
[Date "2023.05.22"]
[Round "2.6"]
[White "Bilguun, Sumiya"]
[Black "Munkhgal, Gombosuren"]
[Result "1/2-1/2"]
[ECO "C02"]
[WhiteElo "2474"]
[BlackElo "2463"]
[Annotator "TA"]
[PlyCount "152"]
[EventDate "2023.05.22"]
[EventType "tourn"]
[EventCountry "MGL"]
[SourceTitle "playchess.com"]
[Source "ChessBase"]
[SourceQuality "1"]
[TimeControl "40/5400+30:1800+30"]

{[%evp 16,152,0,-4,25,22,21,0,24,18,67,52,254,229,493,277,256,258,361,316,371,367,366,368,874,802,831,786,730,728,715,722,712,683,903,452,443,449,438,451,426,448,451,446,414,430,427,392,409,400,406,175,184,152,205,211,211,205,210,178,247,237,239,158,158,158,220,158,158,158,378,304,508,512,489,465,517,580,569,648,670,585,680,684,623,611,554,525,486,131,131,131,131,20,20,20,20,20,20,20,20,20,20,20,22,22,22,0,0,0,0,0,0,0,0,0,0,0,0,0,0,0,0,0,0,0,0,0,0,0,0,0,0,0,0,0,0,0,0]} 1. e4 {[%emt 0:00:04]} e6 {[%emt 0:00:12]} 2. d4 {[%emt 0:00:17]} d5 {[%emt 0:00:05]} 3. e5 {[%emt 0:00:06]} c5 {[%emt 0:00:04]} 4. c3 {[%emt 0:00:05]} Nc6 {[%emt 0:00:02]} 5. Nf3 {[%emt 0:00:07]} Bd7 {[%emt 0:00:03]} 6. Be2 {[%emt 0:03:30]} f6 {[%emt 0:00:28]} 7. O-O {[%emt 0:07:59]} fxe5 {[%emt 0:00:38]} 8. dxe5 {[%emt 0:02:38]} Qc7 {[%emt 0:00:38]} 9. Bf4 {[%emt 0:01:57]} Nge7 {[%emt 0:10:45]} 10. Re1 {[%emt 0:07:29]} h6 {[%emt 0:10:18]} 11. c4 {[%emt 0:13:39]} g5 {[%emt 0:07:47]} (11... d4 $5 {[%cal Rg7g5]}) 12. Nc3 {[%emt 0:20:32]} a6 {[%emt 0:17:31]} (12... O-O-O $11 13. Bg3 Be8) 13. Bg3 $14 {[%emt 0:04:25][%cal Rc4d5]} (13. cxd5 {is more complex.} Nxd5 14. Nxd5 exd5 15. Qxd5 gxf4 16. e6) 13... d4 $2 {[%emt 0:00:52] [#]} ({Black should play} 13... dxc4 $1 $14 14. Ne4 (14. Bxc4 O-O-O $14) 14... O-O-O) 14. Nd5 $1 $18 {[%emt 0:00:05]} (14. Ne4 Nf5 $11) 14... Qa5 $2 {[%emt 0:14:35]} (14... exd5 $2 15. e6 Qc8 16. Nxg5 hxg5 17. exd7+ Qxd7 18. Bg4 $18) (14... Qb8 15. Bd3 Kd8) 15. Nf6+ {[%emt 0:09:19]} (15. Nd2 $142 Bg7 16. Nb3) 15... Kd8 $18 {[%emt 0:00:05]} 16. Bd3 {[%emt 0:03:00]} Kc7 {[%emt 0:06:14]} 17. a3 {[%emt 0:01:28]} Rd8 {[%emt 0:09:41]} 18. b4 {[%emt 0:02:24]} Qb6 {[%emt 0:00:24]} (18... cxb4 $2 19. axb4 Qxb4 20. Nd5+ Nxd5 21. cxd5 $18) 19. Nd5+ {[%emt 0:02:54]} exd5 $2 {[%emt 0:01:04]} (19... Nxd5 20. cxd5 cxb4) 20. e6+ $18 {[%emt 0:00:06]} Kc8 {[%emt 0:00:02]} 21. exd7+ {[%emt 0:00:18]} Rxd7 {[%emt 0:00:04]} 22. cxd5 {[%emt 0:01:45]} Rxd5 {[%emt 0:00:36]} 23. Bc4 {[%emt 0:01:20]} Qd8 {[%emt 0:01:15]} 24. bxc5 {[%emt 0:02:18]} Nf5 {[%emt 0:00:42]} 25. Qb3 {[%emt 0:07:05]} Na5 {[%emt 0:00:58]} 26. Bxd5 {[%emt 0:00:07] White threatens Be6+ and mate.} Nxb3 {[%emt 0:00:02]} 27. Be6+ {[%emt 0:00:07]} Qd7 {[%emt 0:00:07]} 28. Bxd7+ {[%emt 0:00:43]} Kxd7 {[%emt 0:00:04]} 29. Rab1 {[%emt 0:01:18]} Nxc5 {[%emt 0:02:06]} 30. Ne5+ {[%emt 0:00:18]} ({Not} 30. Be5 Rh7 31. Nxd4 Rf7 $18) 30... Kc7 {[%emt 0:00:18]} 31. Nf7+ {[%emt 0:00:46]} Nxg3 {[%emt 0:00:06]} 32. Nxh8 {[%emt 0:00:07]} Nge4 {[%emt 0:00:07]} 33. Rbd1 {[%emt 0:02:24]} (33. Ng6 $142 Bg7 34. f3) 33... Bg7 {[%emt 0:01:48]} 34. Ng6 {[%emt 0:02:01]} Kd6 {[%emt 0:01:22]} (34... Bf6 $16 {keeps fighting.} 35. f3 Nc3) 35. Ne7 $18 {[%emt 0:01:51]} Kxe7 {[%emt 0:06:16]} 36. f3 {[%emt 0:00:06]} Kd6 {[%emt 0:00:38]} 37. fxe4 {[%emt 0:00:10]} b5 {[%emt 0:06:39]} (37... Be5 {was necessary.} 38. g3 b5) 38. Kf2 $18 {[%emt 0:01:23]} Ke5 {[%emt 0:01:39]} 39. Kf3 {[%emt 0:00:08]} Bf8 {[%emt 0:01:43]} 40. Rb1 {[%emt 0:00:00]} h5 {[%emt 0:00:00]} (40... Na4 $16 41. Rec1 Nc3) 41. h3 {[%emt 0:05:21]} Na4 {[%emt 0:04:46]} 42. Rec1 {[%emt 0:03:00] Rc8 would be deadly.} Bxa3 $2 {[%emt 0:06:26]} (42... Bc5 $16 {is a better defense.} 43. g3 Nc3) 43. Rc6 {[%emt 0:02:01]} g4+ $2 {[%emt 0:18:14]} (43... Nc5 44. Ra1 Bb4) 44. hxg4 $18 {[%emt 0:00:05]} hxg4+ {[%emt 0:00:02]} 45. Kxg4 {[%emt 0:01:49] Black must now prevent Kf3.} Kxe4 {[%emt 0:00:07]} 46. Re6+ {[%emt 0:16:04]} Kd5 {[%emt 0:00:07]} 47. Rxa6 {[%emt 0:00:04]} Nc3 {[%emt 0:00:20]} 48. Rf1 {[%emt 0:04:02]} Bc5 {[%emt 0:00:53]} 49. Rf5+ {[%emt 0:00:06]} Kc4 {[%emt 0:00:01]} 50. Rc6 {[%emt 0:00:48]} Na4 {[%emt 0:02:50]} 51. Kf3 {[%emt 0:00:05]} b4 {[%emt 0:00:11]} 52. Ke2 $2 {[%emt 0:01:38]} (52. Rh5 $18 {has better winning chances.}) 52... b3 $16 {[%emt 0:00:37] Hoping for ...b2.} 53. Kd2 {[%emt 0:01:13] Strongly threatening g4.} b2 {[%emt 0:03:20] [#]} 54. Rfxc5+ $1 {[%emt 0:00:16]} Nxc5 $11 {[%emt 0:00:01]} 55. Kc2 {[%emt 0:00:06]} Kd5 {[%emt 0:00:10]} 56. Rb6 {[%emt 0:03:14]} d3+ {[%emt 0:01:41]} 57. Kd2 {[%emt 0:00:28]} (57. Kxb2 Na4+ 58. Kb3 Nxb6 59. Kc3 Ke4 60. Kd2 Nc4+ 61. Kd1 Ke3 62. g4 Na3 63. Kc1 d2+ 64. Kb2 d1=Q 65. Kc3 Qa4 66. g5 Qc4+ 67. Kb2 Qb4+ 68. Ka2 Nc4 69. g6 Qb2#) 57... Na4 $1 {[%emt 0:00:04]} 58. Rb8 {[%emt 0:00:42]} Kc4 {[%emt 0:01:10]} 59. g4 {[%emt 0:01:04]} Kd4 {[%emt 0:00:27]} 60. g5 {[%emt 0:00:47]} Nc5 $1 {[%emt 0:00:27] ...Ne4+ is the strong threat.} 61. g6 {[%emt 0:00:48]} Ne4+ {[%emt 0:00:28]} 62. Ke1 {[%emt 0:00:07]} d2+ {[%emt 0:00:36]} 63. Ke2 {[%emt 0:00:09]} Kc3 {[%emt 0:00:30][%cal Oe4f2] aiming for ...Nf2!} (63... Nc3+ $2 64. Kxd2 b1=Q 65. Rxb1 Nxb1+ 66. Kc2 $18) 64. g7 {[%emt 0:00:49]} Nf6 {[%emt 0:00:01]} 65. Kd1 {[%emt 0:00:50]} Ng8 {[%emt 0:00:19][%mdl 64] Promotion} 66. Rc8+ {[%emt 0:00:57]} (66. Rxg8 {leads to mate.} b1=Q+ 67. Ke2 d1=Q+ 68. Ke3 Qd4+ 69. Kf3 Qf1+ 70. Kg3 Qdf4#) 66... Kd3 {[%emt 0:00:14]} 67. Rb8 {[%emt 0:00:09][%cal Ob8b2] White wants to mate with Rxb2!} (67. Rxg8 $2 b1=Q#) 67... Kc3 {[%emt 0:00:02]} 68. Rxb2 {[%emt 0:00:09][%mdl 64] Deflection} Kxb2 {[%emt 0:00:04]} 69. Kxd2 {[%emt 0:00:03]} Kb3 {[%emt 0:00:32]} 70. Kd3 {[%emt 0:00:05]} Kb4 {[%emt 0:00:05]} 71. Kd4 {[%emt 0:00:04]} Kb5 {[%emt 0:00:06]} 72. Kd5 {[%emt 0:00:03]} Kb6 {[%emt 0:00:07]} 73. Ke6 {[%emt 0:00:05]} Kc7 {[%emt 0:00:04]} 74. Kf7 {[%emt 0:00:04]} Nh6+ {[%emt 0:00:03]} 75. Kf8 {[%emt 0:00:05]} (75. Kg6 $5 Ng8 $8 76. Kh7 Nf6+ 77. Kg6 $11) 75... Kd7 {[%emt 0:00:03]} 76. g8=Q {[%emt 0:00:05]} Nxg8 {[%emt 0:00:04]} 1/2-1/2